bitfinex-derivatives/quotes_BNBF0:USTF0_20241230
["timestamp","ask_amount","ask_price","bid_price","bid_amount"]
[1735577356052,0.91319307,694.13,693.06,1.07432156]
[1735577356458,0.91319307,694.12,693.06,1.07432156]
[1735577356850,0.91319307,694.11,693.06,1.07432156]
[1735577357254,0.91319307,694.19,693.04,1.07432156]
[1735577357656,2.41864384,694.18,693.04,1.07432156]
[1735577357856,0.28811386,694.17,693.04,1.07432156]
[1735577358063,1.20260531,694.17,693.04,1.07432156]
[1735577358458,0.91449145,694.16,693.04,1.07432156]
[1735577358656,0.91449145,694.15,693.04,1.07432156]
[1735577358857,0.28812216,694.15,693.3,1.07432156]
[1735577359257,0.91449145,694.14,693.3,1.07432156]
[1735577359457,0.91449145,694.13,693.3,1.07432156]
[1735577359854,0.28812216,694.15,693.24,1.07432156]
[1735577359855,0.91449145,694.12,693.24,1.07432156]
[1735577360060,0.91449145,694.11,693.24,1.07432156]
[1735577360362,0.91449145,694.1,693.24,1.07432156]
[1735577360563,0.91449145,694.09,693.24,1.07432156]
[1735577360956,0.91449145,694.08,693.17,1.07432156]
[1735577361159,0.91449145,694.07,693.17,1.07432156]
[1735577361361,0.91449145,694.06,693.17,1.07432156]
[1735577361662,0.91449145,694.05,693.19,1.07432156]
[1735577361961,0.91449145,694.04,693.19,1.07432156]
[1735577362355,0.91449145,694.03,693.19,1.07432156]
[1735577362555,0.91449145,694.02,693.12,1.07432156]
[1735577362957,0.91449145,694.01,693.12,1.07432156]
[1735577363160,0.91449145,694.0,693.12,1.07432156]
[1735577363554,0.91449145,693.99,693.12,1.07432156]
[1735577363757,0.91449145,693.98,693.09,1.07432156]
[1735577364160,0.91449145,693.97,693.09,1.07432156]
[1735577364354,0.91449145,693.96,693.09,1.07432156]
[1735577364762,0.91449145,693.95,693.09,1.07432156]
[1735577364960,0.91449145,693.95,693.08,1.07432156]
[1735577365160,0.91449145,693.94,693.08,1.07432156]
[1735577365561,0.91449145,693.93,693.08,1.07432156]
[1735577365762,0.91449145,693.92,693.08,1.07432156]
[1735577366158,0.91449145,693.91,693.08,1.07432156]
[1735577366359,0.91449145,693.91,693.24,1.07432156]
[1735577366562,0.91449145,694.14,693.24,1.07432156]
[1735577367062,0.28812216,694.15,693.24,1.07432156]
[1735577367063,0.91449145,694.13,693.24,1.07432156]
[1735577367262,0.91449145,694.12,693.24,1.07432156]
[1735577367464,0.91449145,694.12,693.39,1.07432156]
[1735577367664,0.91449145,694.11,693.39,1.07432156]
[1735577367967,0.91449145,694.1,693.39,1.07432156]
[1735577368164,0.91449145,694.09,693.39,1.07432156]
[1735577368464,0.91449145,694.08,693.32,1.07432156]
[1735577368864,0.91449145,694.07,693.32,1.07432156]
[1735577369064,1.50510351,694.11,693.32,1.07432156]
[1735577369065,0.91449145,694.06,693.32,1.07432156]
[1735577369465,0.91449145,694.05,693.32,1.07432156]
[1735577369666,0.91449145,694.05,693.33,1.07432156]
[1735577369868,0.91449145,694.04,693.33,1.07432156]
[1735577370361,0.91449145,694.03,693.33,1.07432156]
[1735577370566,0.91449145,694.02,693.33,1.07432156]
[1735577370866,0.91449145,694.01,693.33,1.07432156]
[1735577371067,0.91449145,694.01,693.39,1.07432156]
[1735577371267,0.91449145,694.0,693.39,1.07432156]
[1735577371468,0.91449145,694.1,693.39,1.07432156]
[1735577371867,0.91449145,694.09,693.39,1.07432156]
[1735577372368,0.91449145,694.08,693.43,1.07432156]
[1735577372871,0.91449145,694.07,693.43,1.07432156]
[1735577373066,0.91449145,694.06,693.43,1.07432156]
[1735577373563,0.91449145,694.05,693.43,1.07432156]
[1735577373769,0.91449145,694.04,693.27,1.07432156]
[1735577374263,0.91449145,694.03,693.27,1.07432156]
[1735577374466,1.50510351,694.11,693.27,1.07432156]
[1735577374665,0.92018644,694.02,693.26,1.07432156]
[1735577374866,0.92018644,694.01,693.26,1.07432156]
[1735577375169,0.92018644,694.0,693.26,1.07432156]
[1735577375570,0.92018644,693.99,693.26,1.07432156]
[1735577375870,0.92018644,693.98,693.24,1.07432156]
[1735577376468,0.92018644,693.97,693.24,1.07432156]
[1735577376866,0.92018644,693.96,693.24,1.07432156]
[1735577377063,0.92018644,693.96,693.21,1.07432156]
[1735577377264,0.92018644,693.95,693.21,1.07432156]
[1735577377463,0.92018644,693.94,693.21,1.07432156]
[1735577377869,0.92018644,693.93,693.21,1.07432156]
[1735577378075,0.92018644,693.93,692.32,2.19340652]
[1735577378076,0.92018644,693.93,693.23,1.07432156]
[1735577378270,0.92018644,693.92,693.23,1.07432156]
[1735577378470,0.28812216,694.15,693.23,1.07432156]
[1735577378773,0.92218616,694.14,693.23,1.07432156]
[1735577379172,0.92218616,694.13,693.4,1.07432156]
[1735577379372,0.92218616,694.12,693.4,1.07432156]
[1735577379673,0.92218616,694.11,693.4,1.07432156]
[1735577380067,0.92218616,694.1,693.4,1.07432156]
[1735577380272,0.92218616,694.09,693.4,1.07432156]
[1735577380774,0.92218616,694.08,693.37,1.07432156]
[1735577381073,0.92218616,694.07,693.37,1.07432156]
[1735577381472,0.92218616,694.06,693.37,1.07432156]
[1735577381670,0.92218616,694.05,693.37,1.07432156]
[1735577381874,0.92218616,694.04,693.26,1.07432156]
[1735577382274,0.28812216,694.15,693.26,1.07432156]
[1735577382275,0.92218616,694.03,693.26,1.07432156]
[1735577382576,0.92218616,694.02,693.26,1.07432156]
[1735577382774,0.92218616,694.01,693.26,1.07432156]
[1735577383282,0.92218616,694.0,693.25,1.07432156]
[1735577383582,0.92218616,693.99,693.25,1.07432156]
[1735577383778,0.92218616,693.98,693.25,1.07432156]
[1735577383971,0.92218616,693.97,693.25,1.07432156]
[1735577384368,0.92218616,693.97,692.46,2.19340652]
[1735577384369,0.92218616,693.97,693.11,1.07432156]
[1735577384572,0.92218616,693.96,693.11,1.07432156]
[1735577384772,0.28812216,694.15,693.11,1.07432156]
[1735577384980,0.92236994,693.95,693.11,1.07432156]
[1735577385278,0.92236994,693.94,693.08,1.07432156]
[1735577385678,0.92236994,693.93,693.08,1.07432156]
[1735577386075,0.92236994,693.92,693.08,1.07432156]
[1735577386278,0.92236994,693.91,693.08,1.07432156]
[1735577386479,0.92236994,693.91,692.95,1.07432156]
[1735577386677,0.92236994,693.9,692.95,1.07432156]
[1735577386877,0.92236994,693.89,692.95,1.07432156]
[1735577387277,0.92236994,693.88,692.95,1.07432156]
[1735577387875,0.92236994,693.87,692.93,1.07432156]
[1735577388078,0.92236994,693.86,692.93,1.07432156]
[1735577388479,0.92236994,693.85,692.93,1.07432156]
[1735577388779,0.92236994,693.84,692.93,1.07432156]
[1735577388983,2.42834733,693.84,692.9,1.07432156]
[1735577389183,0.92236994,693.83,692.9,1.07432156]
[1735577389684,0.92236994,693.82,692.9,1.07432156]
[1735577389976,0.92236994,693.81,692.9,1.07432156]
[1735577390382,0.92236994,693.8,692.75,1.07432156]
[1735577390680,0.92236994,693.79,692.75,1.07432156]
[1735577391185,0.92236994,693.78,692.79,1.07432156]
[1735577391582,0.92236994,693.77,692.79,1.07432156]
[1735577391884,0.92236994,693.76,692.79,1.07432156]
[1735577392183,0.92236994,693.75,692.79,1.07432156]
[1735577392688,0.92236994,693.74,692.71,1.07432156]
[1735577392883,0.92236994,693.73,692.71,1.07432156]
[1735577393284,0.92236994,693.72,692.71,1.07432156]
[1735577393688,0.92236994,693.71,692.62,1.07432156]
[1735577393981,0.92236994,693.7,692.62,1.07432156]
[1735577394179,1.50597739,693.84,692.62,1.07432156]
[1735577394180,0.92236994,693.69,692.62,1.07432156]
[1735577394387,0.92236994,693.68,692.62,1.07432156]
[1735577394684,0.92236994,693.67,692.62,1.07432156]
[1735577394881,0.92236994,693.66,692.62,1.07432156]
[1735577395084,0.92236994,693.65,692.62,1.07432156]
[1735577395284,0.92236994,693.65,692.58,1.07432156]
[1735577395483,0.92236994,693.64,692.58,1.07432156]
[1735577395982,0.92236994,693.63,692.58,1.07432156]
[1735577396182,0.92236994,693.62,692.54,1.07432156]
[1735577396686,0.92236994,693.61,692.54,1.07432156]
[1735577397086,0.92236994,693.6,692.56,1.07432156]
[1735577397487,0.92236994,693.59,692.56,1.07432156]
[1735577397885,0.92236994,693.59,691.76,2.19340652]
[1735577397886,0.92236994,693.58,692.57,1.07432156]
[1735577398185,0.92236994,693.57,692.57,1.07432156]
[1735577398585,0.92236994,693.56,692.57,1.07432156]
[1735577398785,0.92236994,693.55,692.57,1.07432156]
[1735577399287,0.92236994,693.54,692.54,1.07432156]
[1735577399486,0.92236994,693.53,692.54,1.07432156]
[1735577399689,0.92236994,693.52,692.54,1.07432156]
[1735577400086,0.92236994,693.51,692.54,1.07432156]
[1735577400487,0.28812216,694.15,692.52,1.07432156]
[1735577400685,1.50637395,693.65,692.52,1.07432156]
[1735577400887,0.91860838,693.64,692.52,1.07432156]
[1735577401085,0.91860838,693.63,692.52,1.07432156]
[1735577401487,0.91860838,693.62,692.56,1.07432156]
[1735577401683,1.50630875,693.65,692.56,1.07432156]
[1735577401684,0.91860838,693.61,692.56,1.07432156]
[1735577402187,0.91860838,693.6,692.56,1.07432156]
[1735577402589,0.91860838,693.59,692.57,1.07432156]
[1735577403088,1.50630875,693.65,692.57,1.07432156]
[1735577403288,0.91770206,693.64,692.57,1.07432156]
[1735577403690,0.91770206,693.63,692.54,1.07432156]
[1735577403992,0.91770206,693.62,692.54,1.07432156]
[1735577404196,0.28812216,694.15,692.54,1.07432156]
[1735577404388,1.50618379,693.77,692.54,1.07432156]
[1735577404589,0.91773979,693.76,692.55,0.28878781]
[1735577404992,0.91773979,693.75,692.6,1.07432156]
[1735577405491,0.91773979,693.74,692.6,1.07432156]
[1735577405890,0.91773979,693.73,692.6,1.07432156]
[1735577406088,0.91773979,693.72,692.6,1.07432156]
[1735577406492,1.50608058,693.83,692.84,1.07432156]
[1735577406493,0.91773979,693.71,692.84,1.07432156]
[1735577406692,0.91773979,693.7,692.84,1.07432156]
[1735577407091,0.91773979,693.69,692.84,1.07432156]
[1735577407386,0.91773979,693.68,692.8,1.07432156]
[1735577407791,0.91773979,693.67,692.8,1.07432156]
[1735577407995,0.91773979,693.66,692.8,1.07432156]
[1735577408491,0.91773979,693.65,692.8,1.07432156]
[1735577408691,0.91773979,693.65,692.66,1.07432156]
[1735577408895,0.91773979,693.64,692.66,1.07432156]
[1735577409396,0.91773979,693.63,692.66,1.07432156]
[1735577409896,0.91773979,693.62,692.66,1.07432156]
[1735577410088,0.91773979,693.61,692.66,1.07432156]
[1735577410395,0.91773979,693.6,692.66,1.07432156]
[1735577410792,0.91773979,693.59,692.66,1.07432156]
[1735577410991,0.91773979,693.58,692.66,1.07432156]
[1735577411391,0.91773979,693.57,692.58,1.07432156]
[1735577411593,0.91773979,693.56,692.58,1.07432156]
[1735577411996,0.91773979,693.55,692.58,1.07432156]
[1735577412295,0.91773979,693.54,692.58,1.07432156]
[1735577412488,0.91773979,693.53,692.58,1.07432156]
[1735577412691,0.91773979,693.52,692.58,1.07432156]
[1735577412892,0.91773979,693.51,692.58,1.07432156]
[1735577413290,0.91773979,693.5,692.58,1.07432156]
[1735577413691,0.91773979,693.49,692.58,1.07432156]
[1735577413893,0.91773979,693.48,692.66,1.07432156]
[1735577414294,0.91773979,693.47,692.66,1.07432156]
[1735577414494,0.91773979,693.46,692.66,1.07432156]
[1735577414795,0.91773979,693.45,692.66,1.07432156]
[1735577414995,0.91773979,693.45,692.24,1.28918587]
[1735577414996,0.91773979,693.45,692.69,1.07432156]
[1735577415192,0.91773979,693.44,692.69,1.07432156]
[1735577415595,0.91773979,693.43,692.69,1.07432156]
[1735577415795,0.91773979,693.42,692.69,1.07432156]
[1735577416092,0.91773979,693.42,692.67,1.07432156]
[1735577416296,1.50665113,693.45,692.67,1.07432156]
[1735577416297,0.91773979,693.41,692.67,1.07432156]
[1735577416498,0.91773979,693.4,692.67,1.07432156]
[1735577416892,0.91773979,693.39,692.71,1.07432156]
[1735577417092,0.91773979,693.38,692.71,1.07432156]
[1735577417399,0.91773979,693.37,692.71,1.07432156]
[1735577417905,0.91773979,693.36,692.7,1.07432156]
[1735577418199,0.91773979,693.35,692.7,1.07432156]
[1735577418598,0.91773979,693.34,692.7,1.07432156]
[1735577418999,0.91773979,693.33,692.68,1.07432156]
[1735577419397,1.50665113,693.45,692.68,1.07432156]
[1735577419698,0.9152363,693.44,692.68,1.07432156]
[1735577419899,0.9152363,693.44,692.64,1.07432156]
[1735577420094,0.9152363,693.43,692.64,1.07432156]
[1735577420498,0.9152363,693.44,692.64,1.07432156]
[1735577420699,0.9152363,693.43,692.64,1.07432156]
[1735577420901,1.50665113,693.45,692.66,1.07432156]
[1735577421298,1.35914282,694.15,692.66,1.07432156]
[1735577421501,1.50648264,693.52,692.66,1.07432156]
[1735577421896,1.35914282,694.15,692.66,1.07432156]
[1735577422099,1.5064446,693.52,692.66,1.07432156]
[1735577422301,1.5064446,693.52,691.99,2.19340652]
[1735577422302,0.28812216,694.15,692.89,1.07432156]
[1735577422603,1.18074017,694.14,692.89,1.07432156]
[1735577422901,1.18074017,694.13,692.89,1.07432156]
[1735577423102,1.18074017,694.12,692.97,1.07432156]
[1735577423302,0.26542946,694.11,692.97,1.07432156]
[1735577423496,0.91531071,694.1,692.97,1.07432156]
[1735577423696,0.26542946,694.09,692.97,1.07432156]
[1735577423902,1.18074017,694.09,692.97,1.07432156]
[1735577424099,0.26545018,694.08,692.97,1.07432156]
[1735577424304,0.28815952,694.06,693.0,1.07432156]
[1735577424499,1.18076089,694.05,693.0,1.07432156]
[1735577424700,0.26545018,694.04,693.0,1.07432156]
[1735577424906,0.91531071,694.03,693.0,1.07432156]
[1735577425205,0.28818028,694.01,692.92,1.07432156]
[1735577425397,0.26545018,694.0,692.92,1.07432156]
[1735577425598,1.18076089,694.0,692.92,1.07432156]
[1735577425803,1.18076089,693.99,692.92,1.07432156]
[1735577426003,0.26545018,693.98,692.88,1.07432156]
[1735577426203,0.28820104,693.96,692.88,1.07432156]
[1735577426500,0.91531071,693.95,692.88,1.07432156]
[1735577426707,1.18074156,693.94,692.93,1.07432156]
[1735577426899,1.18074156,693.93,692.93,1.07432156]
[1735577427099,0.55364851,693.92,692.93,1.07432156]
[1735577427304,1.20352837,693.92,692.93,1.07432156]
[1735577427501,1.20353252,693.91,692.93,1.07432156]
[1735577427899,0.91531071,693.9,692.93,1.07432156]
[1735577428401,0.91531071,693.89,692.93,1.07432156]
[1735577428604,0.28822181,693.91,692.93,1.07432156]
[1735577428605,0.91531071,693.88,692.93,1.07432156]
[1735577428806,0.91531071,693.88,692.9,1.07432156]
[1735577429006,0.91531071,693.87,692.9,1.07432156]
[1735577429208,1.20355329,693.86,692.9,1.07432156]
[1735577429704,0.91531071,693.85,692.9,1.07432156]
[1735577429901,0.91531071,693.84,692.9,1.07432156]
[1735577430107,0.91531071,693.84,692.88,1.07432156]
[1735577430308,0.91531071,693.83,692.88,1.07432156]
[1735577430509,0.91531071,693.82,692.88,1.07432156]
[1735577430809,0.91531071,693.81,692.88,1.07432156]
[1735577431207,0.91531071,693.8,692.94,1.07432156]
[1735577431407,0.91531071,693.79,692.94,1.07432156]
[1735577431805,0.91531071,693.78,692.94,1.07432156]
[1735577432307,0.91531071,693.78,692.22,2.19340652]
[1735577432308,0.91531071,693.77,692.93,1.07432156]
[1735577432508,0.91531071,693.76,692.93,1.07432156]
[1735577432807,0.91531071,693.75,692.93,1.07432156]
[1735577433305,0.91531071,693.74,692.95,1.07432156]
[1735577433810,2.42143475,693.73,692.95,1.07432156]
[1735577434011,0.91531071,693.72,692.95,1.07432156]
[1735577434402,0.91531071,693.71,692.7,1.07432156]
[1735577434605,0.91531071,693.7,692.7,1.07432156]
[1735577434808,0.91531071,693.69,692.7,1.07432156]
[1735577435209,0.91531071,693.72,692.7,1.07432156]
[1735577435511,0.91531071,693.71,692.7,1.07432156]
[1735577435713,0.91531071,693.71,693.1,1.07432156]
[1735577436011,0.91531071,693.82,693.1,1.07432156]
[1735577436209,0.91531071,693.81,693.1,1.07432156]
[1735577436509,0.91531071,693.8,693.1,1.07432156]
[1735577436910,0.91531071,693.79,693.1,1.07432156]
[1735577437305,0.91531071,693.78,693.1,1.07432156]
[1735577437503,0.91531071,693.77,693.1,1.07432156]
[1735577437705,0.91531071,693.76,693.1,1.07432156]
[1735577437910,0.91531071,693.75,693.1,1.07432156]
[1735577438307,0.91531071,693.74,693.05,1.07432156]
[1735577438510,0.91531071,693.73,693.05,1.07432156]
[1735577438711,0.91531071,693.72,693.05,1.07432156]
[1735577439012,0.91531071,693.71,693.05,1.07432156]
[1735577439214,0.91531071,693.7,693.01,1.07432156]
[1735577439415,0.91531071,693.69,693.01,1.07432156]
[1735577439813,0.91531071,693.68,693.01,1.07432156]
[1735577440114,0.91531071,693.67,693.0,1.07432156]
[1735577440510,0.91531071,693.66,693.0,1.07432156]
[1735577440709,1.50603713,693.83,693.0,1.07432156]
[1735577440913,0.91953809,693.82,693.0,1.07432156]
[1735577441113,0.91953809,693.82,693.02,1.07432156]
[1735577441313,0.91953809,693.81,693.02,1.07432156]
[1735577441713,0.91953809,693.8,693.02,1.07432156]
[1735577441915,0.91953809,693.79,693.02,1.07432156]
[1735577442110,0.91953809,693.79,693.01,1.07432156]
[1735577442311,0.91953809,693.78,693.01,1.07432156]
[1735577442511,0.91953809,693.77,693.01,1.07432156]
[1735577442910,0.91953809,693.76,693.01,1.07432156]
[1735577443112,0.91953809,693.75,693.01,1.07432156]
[1735577443516,0.91953809,693.74,693.01,1.07432156]
[1735577443711,0.91953809,693.73,693.01,1.07432156]
[1735577443914,0.91953809,693.73,692.46,2.19340652]
[1735577443915,0.91953809,693.72,693.04,1.07432156]
[1735577444314,0.28824258,693.86,693.04,1.07432156]
[1735577444719,0.92020109,693.85,693.04,1.07432156]
[1735577445112,0.92020109,693.84,693.04,1.07432156]
[1735577445319,0.92020109,693.83,693.04,1.07432156]
[1735577445719,0.92020109,693.82,693.02,1.07432156]
[1735577445917,0.92020109,693.81,693.02,1.07432156]
[1735577446119,0.92020109,693.8,693.02,1.07432156]
[1735577446524,0.28824258,693.86,693.02,1.07432156]
[1735577446725,1.50572761,693.92,693.02,1.07432156]
[1735577447022,0.91935337,693.85,693.02,1.07432156]
[1735577447225,0.91935337,693.84,693.01,1.07432156]
[1735577447622,1.50557018,694.01,693.01,1.07432156]
[1735577447822,0.91896898,694.0,693.01,1.07432156]
[1735577448021,0.91896898,693.99,693.01,1.07432156]
[1735577448428,0.91896898,693.98,693.01,1.07432156]
[1735577448628,0.91896898,693.98,693.04,1.07432156]
[1735577448827,0.91896898,693.97,693.04,1.07432156]
[1735577449228,0.91896898,693.96,693.04,1.07432156]
[1735577449626,1.07102066,695.14,692.69,1.07432156]
[1735577449627,0.91896898,693.95,693.05,1.07432156]
[1735577450025,0.91896898,693.94,693.05,1.07432156]
[1735577450225,1.07102066,694.94,693.05,1.07432156]
[1735577450424,0.26522335,694.93,693.05,1.07432156]
[1735577450627,1.50535309,694.12,693.09,1.07432156]
[1735577450823,0.28780705,694.91,693.09,1.07432156]
[1735577451024,1.50521201,694.19,693.09,1.07432156]
[1735577451228,0.28780705,694.91,693.09,1.07432156]
[1735577451430,1.50506554,694.24,693.09,1.07432156]
[1735577451828,1.18336507,694.9,693.2,1.07432156]
[1735577452025,0.91818477,694.23,693.2,1.07432156]
[1735577452228,0.91818477,694.22,693.2,1.07432156]
[1735577452429,0.91818477,694.21,693.2,1.07432156]
[1735577452630,0.91818477,694.2,693.28,1.07432156]
[1735577452931,0.91818477,694.19,693.28,1.07432156]
[1735577453129,1.50495164,694.33,693.28,1.07432156]
[1735577453524,0.91681729,694.32,693.28,1.07432156]
[1735577453729,0.91681729,694.31,693.28,1.07432156]
[1735577454035,0.91681729,694.31,692.68,2.19340652]
[1735577454036,0.91681729,694.3,693.25,1.07432156]
[1735577454231,0.91681729,694.29,693.25,1.07432156]
[1735577454432,0.91681729,694.28,693.25,1.07432156]
[1735577454633,0.91681729,694.27,693.25,1.07432156]
[1735577454931,0.91681729,694.27,692.93,1.07432156]
[1735577454932,0.91681729,694.27,693.26,1.07432156]
[1735577455434,0.91681729,694.26,693.26,1.07432156]
[1735577455833,0.91681729,694.25,693.26,1.07432156]
[1735577456034,0.91681729,694.24,693.27,1.07432156]
[1735577456230,0.91681729,694.23,693.27,1.07432156]
[1735577456637,0.91681729,694.22,693.27,1.07432156]
[1735577457031,0.91681729,694.21,693.23,1.07432156]
[1735577457231,0.91681729,694.2,693.23,1.07432156]
[1735577457631,0.91681729,694.19,693.23,1.07432156]
[1735577457842,0.91681729,694.18,693.23,1.07432156]
[1735577458237,0.91681729,694.17,693.23,1.07432156]
[1735577458640,1.50495164,694.33,693.22,1.07432156]
[1735577459041,0.91553746,694.32,693.22,1.07432156]
[1735577459235,0.91553746,694.31,693.22,1.07432156]
[1735577459546,1.50495164,694.33,693.22,1.07432156]
[1735577459547,0.91553746,694.3,693.22,1.07432156]
[1735577459841,1.50495164,694.33,693.24,1.07432156]
[1735577459842,0.91553746,694.29,693.24,1.07432156]
[1735577460236,0.91553746,694.28,693.24,1.07432156]
[1735577460633,0.91553746,694.27,693.24,1.07432156]
[1735577460843,0.91553746,694.26,693.24,1.07432156]
[1735577461037,0.91553746,694.26,692.98,1.07432156]
[1735577461241,0.91553746,694.25,692.98,1.07432156]
[1735577461440,0.91553746,694.24,692.98,1.07432156]
[1735577461836,0.91553746,694.23,692.98,1.07432156]
[1735577462238,0.91553746,694.22,692.93,1.07432156]
[1735577462440,0.91553746,694.21,692.93,1.07432156]
[1735577462844,0.91553746,694.2,692.93,1.07432156]
[1735577463042,0.91553746,694.19,692.93,1.07432156]
[1735577463243,0.91553746,694.18,692.93,1.07432156]
[1735577463746,0.91553746,694.17,693.04,1.07432156]
[1735577463941,0.91553746,694.16,693.04,1.07432156]
[1735577464344,0.91553746,694.15,693.04,1.07432156]
[1735577464742,0.91553746,694.14,693.04,1.07432156]
[1735577465042,1.50540735,694.19,692.66,1.07432156]
[1735577465043,0.91553746,694.13,693.14,1.07432156]
[1735577465339,0.91553746,694.12,693.14,1.07432156]
[1735577465646,1.50540735,694.19,693.14,1.07432156]
[1735577465839,1.50540735,694.19,693.3,1.07432156]
[1735577466038,0.91399149,694.18,693.3,1.07432156]
[1735577466438,0.91399149,694.17,693.3,1.07432156]
[1735577466846,0.91399149,694.16,693.3,1.07432156]
[1735577467144,0.91399149,694.16,693.32,1.07432156]
[1735577467345,0.91399149,694.15,693.32,1.07432156]
[1735577467646,1.50540735,694.19,693.32,1.07432156]
[1735577468245,1.50540735,694.19,693.35,1.07432156]
[1735577469547,1.50540735,694.19,693.42,1.07432156]
[1735577470546,1.50540735,694.19,693.43,1.07432156]
[1735577471249,1.50540735,694.19,693.46,1.07432156]
[1735577471645,0.28780705,694.91,693.46,1.07432156]
[1735577471845,1.50484317,694.22,693.46,1.07432156]
[1735577472045,0.28780705,694.91,693.46,1.07432156]
[1735577472245,1.50482691,694.22,693.46,1.07432156]
[1735577472448,0.28780705,694.91,693.46,1.07432156]
[1735577472652,1.17836386,694.9,693.5,1.07432156]
[1735577472953,1.17836135,694.89,693.5,1.07432156]
[1735577473143,0.26515804,694.88,693.5,1.07432156]
[1735577473345,0.26515804,694.87,693.5,1.07432156]
[1735577473550,1.17836135,694.87,693.54,1.07432156]
[1735577473745,2.68280876,694.86,693.54,1.07432156]
[1735577473946,1.17836135,694.85,693.54,1.07432156]
[1735577474151,0.26515804,694.84,693.54,1.07432156]
[1735577474451,0.91320331,694.83,693.54,1.07432156]
[1735577474653,0.26515804,694.82,693.54,1.07432156]
[1735577474947,0.26516436,694.81,693.5,1.07432156]
[1735577475151,1.17836767,694.81,693.5,1.07432156]
[1735577475353,1.17836767,694.8,693.5,1.07432156]
[1735577475552,1.17836767,694.79,693.5,1.07432156]
[1735577475754,1.17836767,694.78,693.5,1.07432156]
[1735577475954,0.26516436,694.77,693.5,1.07432156]
[1735577476158,0.91320331,694.76,693.51,1.07432156]
[1735577476350,0.26516436,694.75,693.51,1.07432156]
[1735577476551,1.17836767,694.75,693.51,1.07432156]
[1735577476757,1.17836767,694.74,693.51,1.07432156]
[1735577477050,0.91320331,694.73,693.51,1.07432156]
[1735577477255,0.91320331,694.73,693.66,1.07432156]
[1735577477453,0.91320331,694.72,693.66,1.07432156]
[1735577477854,0.91320331,694.71,693.66,1.07432156]
[1735577478053,0.91320331,694.7,693.66,1.07432156]
[1735577478455,0.91320331,694.69,693.84,1.07432156]
[1735577478649,0.91320331,694.68,693.84,1.07432156]
[1735577479055,0.91320331,694.67,693.84,1.07432156]
[1735577479357,0.91320331,694.85,693.84,1.07432156]
[1735577479758,0.91320331,694.84,693.87,1.07432156]
[1735577479956,0.91320331,694.83,693.87,1.07432156]
[1735577480351,0.91320331,694.82,693.87,1.07432156]
[1735577480754,0.91320331,694.81,693.87,1.07432156]
[1735577481158,0.91320331,694.8,693.75,1.07432156]
[1735577481559,0.91320331,694.79,693.75,1.07432156]
[1735577481761,0.91320331,694.78,693.75,1.07432156]
[1735577481964,0.91320331,694.77,693.75,1.07432156]
[1735577482258,0.91320331,694.76,693.75,1.07432156]
[1735577482461,0.91320331,694.76,693.66,1.07432156]
[1735577482759,0.91320331,694.75,693.66,1.07432156]
[1735577483263,0.91320331,694.74,693.66,1.07432156]
[1735577483664,0.91320331,694.73,693.69,1.07432156]
[1735577484060,0.91320331,694.72,693.69,1.07432156]
[1735577484363,0.91320331,694.71,693.69,1.07432156]
[1735577484660,0.91320331,694.72,693.69,1.07432156]
[1735577484957,0.91320331,694.71,693.87,1.07432156]
[1735577485359,0.91320331,694.72,693.87,1.07432156]
[1735577486361,0.91320331,694.72,693.86,1.07432156]
[1735577486952,1.50400311,694.73,693.86,1.07432156]
[1735577486953,0.91320331,694.71,693.86,1.07432156]
[1735577487157,0.91320331,694.72,693.86,1.07432156]
[1735577487354,0.91320331,694.72,693.89,1.07432156]
[1735577487857,1.50400311,694.73,693.89,1.07432156]
[1735577488358,1.50400311,694.73,693.86,1.07432156]
[1735577489456,0.9140784,694.72,693.86,1.07432156]
[1735577489855,0.9140784,694.71,693.86,1.07432156]
[1735577490060,0.9140784,694.71,693.2,2.19340652]
[1735577490061,0.9140784,694.71,693.81,1.07432156]
[1735577490257,1.50400311,694.73,693.81,1.07432156]
[1735577490654,0.9141913,694.72,693.81,1.07432156]
[1735577490858,1.50400311,694.73,693.81,1.07432156]
[1735577491257,1.50400311,694.73,693.79,1.07432156]
[1735577491856,1.07102066,695.79,693.79,1.07432156]
[1735577492060,1.50373232,694.82,693.81,1.07432156]
[1735577492259,0.91400618,694.81,693.81,1.07432156]
[1735577492561,1.50367276,694.82,693.81,1.07432156]
[1735577492759,0.91400618,694.81,693.81,1.07432156]
[1735577492961,0.91400618,694.8,693.81,1.07432156]
[1735577493161,0.91400618,694.79,693.81,1.07432156]
[1735577493563,0.91400618,694.78,693.83,1.07432156]
[1735577493767,0.91400618,694.77,693.83,1.07432156]
[1735577493968,0.91400618,694.76,693.83,1.07432156]
[1735577494364,0.91400618,694.75,693.83,1.07432156]
[1735577494561,0.91400618,694.75,693.36,1.28918587]
[1735577494562,0.91400618,694.75,693.59,1.07432156]
[1735577494761,0.91400618,694.74,693.59,1.07432156]
[1735577494962,0.91400618,694.73,693.59,1.07432156]
[1735577495164,0.91400618,694.72,693.59,1.07432156]
[1735577495566,0.91400618,694.71,693.62,1.07432156]
[1735577495764,0.91400618,694.81,693.62,1.07432156]
[1735577495961,0.91400618,694.8,693.62,1.07432156]
[1735577496467,0.91400618,694.79,693.62,1.07432156]
[1735577496670,0.91400618,694.78,693.72,1.07432156]
[1735577497066,0.91400618,694.81,693.72,1.07432156]
[1735577497868,0.91400618,694.81,693.81,1.07432156]
[1735577498765,0.91400618,694.8,693.81,1.07432156]